bitfinex/quotes_ETHUSD_20251218
["timestamp","ask_amount","ask_price","bid_price","bid_amount"]
[1766085796283,4.9835,2827.7,2826.4,3.03458023]
[1766085796579,2.5221,2827.3,2826.0,2.5702]
[1766085796775,4.9835,2827.1,2826.1,1.04538023]
[1766085796980,0.07812361,2828.2,2826.1,1.04538023]
[1766085796981,0.405504,2828.3,2826.4,0.405504]
[1766085797181,2.5221,2827.7,2826.7,0.46438023]
[1766085797478,4.9835,2827.7,2826.7,3.03458023]
[1766085797676,5.53995,2827.7,2826.8,0.46438023]
[1766085797915,0.46538023,2828.4,2826.8,0.54250384]
[1766085798212,0.001,2828.6,2827.7,1.3738]
[1766085798416,8.0866,2829.2,2828.1,0.46438023]
[1766085798581,8.0866,2829.2,2827.8,0.581]
[1766085798582,0.581,2829.2,2827.8,0.581]
[1766085798784,2.5221,2829.0,2827.9,0.46438023]
[1766085798982,4.9835,2829.1,2828.0,2.5702]
[1766085798983,0.75056,2828.9,2828.0,2.5702]
[1766085799616,4.9835,2828.8,2827.9,0.581]
[1766085799798,2.5221,2828.6,2827.1,2.5702]
[1766085800125,7.5056,2828.4,2827.3,0.46438023]
[1766085800286,1.33156,2828.3,2827.3,4.00131166]
[1766085800487,7.5056,2829.0,2827.6,2.5702]
[1766085800792,0.581,2828.9,2827.7,0.46438023]
[1766085801010,7.5056,2828.8,2827.6,0.46438023]
[1766085801316,7.5056,2828.8,2827.6,6.5710689]
[1766085801510,7.5056,2828.8,2827.6,5.37803422]
[1766085801719,0.80866,2828.7,2827.7,0.46438023]
[1766085802088,0.80866,2828.7,2827.5,0.46438023]
[1766085802289,7.5056,2828.5,2827.5,0.46438023]
[1766085802610,7.5056,2828.5,2827.6,0.46438023]
[1766085802913,7.5056,2828.5,2827.4,0.581]
[1766085802914,4.9835,2828.4,2827.4,0.581]
[1766085803114,4.9835,2828.1,2827.1,0.46438023]
[1766085803414,0.49835,2828.0,2827.1,0.58]
[1766085803621,0.49835,2828.0,2827.1,1.04438023]
[1766085803912,0.49835,2828.0,2827.2,0.46438023]
[1766085804115,5.48185,2828.0,2827.1,0.58]
[1766085804311,5.48185,2828.0,2827.1,4.11718693]
[1766085804503,5.48185,2828.0,2827.1,0.58]
[1766085804700,0.858395,2827.9,2826.9,0.46438023]
[1766085804900,0.858395,2827.9,2826.9,4.00181157]
[1766085804901,7.5056,2827.8,2826.9,4.00181157]
[1766085805100,0.858395,2827.9,2827.0,2.5702]
[1766085805301,0.49835,2828.0,2827.2,0.46438023]
[1766085806503,0.58,2828.4,2827.2,3.03458023]
[1766085806504,8.0856,2828.4,2827.2,3.03458023]
[1766085806678,4.9835,2828.3,2827.2,3.03458023]
[1766085806886,7.5056,2828.3,2827.2,6.57160885]
[1766085807309,7.5056,2828.3,2827.2,10.68864769]
[1766085807629,7.5056,2828.3,2827.3,2.5702]
[1766085807788,0.80856,2828.2,2827.3,2.5702]
[1766085808495,0.581,2828.7,2827.3,0.46438023]
[1766085808692,0.581,2828.7,2827.5,1.384]
[1766085808910,0.581,2828.7,2827.6,3.1502]
[1766085809110,0.581,2828.7,2827.7,3.53644304]
[1766085809308,0.60388802,2828.7,2827.9,3.9551]
[1766085809507,0.001,2828.7,2827.9,3.9551]
[1766085810103,0.001,2828.7,2828.0,0.58]
[1766085810303,0.001,2828.7,2827.3,0.46438023]
[1766085810304,4.9835,2828.4,2827.3,1.04438023]
[1766085810513,4.9835,2828.1,2827.3,1.04438023]
[1766085810890,4.9835,2828.0,2827.3,0.46438023]
[1766085811091,0.80856,2828.0,2827.3,0.46438023]
[1766085811319,5.5635,2828.2,2827.3,0.46438023]
[1766085811525,5.5635,2828.2,2827.3,4.00130567]
[1766085812328,5.5635,2828.2,2827.6,0.002]
[1766085812632,7.5056,2828.1,2827.6,0.002]
[1766085813132,0.07812361,2829.0,2827.6,0.002]
[1766085813133,7.5056,2829.3,2827.9,1.3887]
[1766085813339,30.75056,2829.2,2827.9,0.46438023]
[1766085813632,0.75056,2829.2,2828.4,2.5702]
[1766085813819,7.5066,2829.5,2828.4,2.5702]
[1766085814005,4.9835,2829.4,2828.4,2.5702]
[1766085814327,4.9835,2829.3,2828.1,0.46438023]
[1766085814626,4.9835,2829.0,2828.1,1.04438023]
[1766085814796,7.5056,2828.9,2828.1,0.58]
[1766085814996,4.9835,2828.8,2828.1,0.58]
[1766085815192,0.58,2829.2,2828.1,1.03804619]
[1766085815395,0.58,2829.2,2828.2,0.46438023]
[1766085816105,0.58,2829.2,2827.6,0.002]
[1766085816305,2.5221,2829.0,2827.9,0.46438023]
[1766085816523,7.7983604,2828.9,2827.9,0.46438023]
[1766085816726,0.58,2828.8,2827.9,0.46438023]
[1766085817219,8.0856,2828.8,2827.9,0.46438023]
[1766085817420,8.0856,2828.8,2827.6,1.3934]
[1766085817421,0.58,2828.8,2827.6,0.002]
[1766085817728,0.405504,2828.7,2827.6,0.002]
[1766085817933,7.5056,2828.5,2827.6,0.002]
[1766085818135,1.33056,2828.4,2827.6,0.002]
[1766085818331,4.9835,2828.3,2827.6,0.002]
[1766085818499,7.5056,2828.2,2827.6,0.002]
[1766085819431,1.33056,2828.4,2827.6,0.002]
[1766085819794,4.9835,2828.2,2827.6,0.002]
[1766085820206,0.58,2828.4,2827.6,0.002]
[1766085820412,7.5056,2828.2,2827.6,0.002]
[1766085820615,4.9835,2828.1,2827.6,0.002]
[1766085820812,7.5056,2828.1,2827.6,0.002]
[1766085821032,8.25616,2828.1,2827.6,0.002]
[1766085821421,0.001,2828.8,2827.6,0.002]
[1766085821622,0.001,2828.8,2826.6,0.405504]
[1766085821623,4.9835,2827.1,2825.5,0.002]
[1766085821837,4.9835,2826.4,2825.5,0.002]
[1766085822120,7.5056,2826.2,2825.5,0.002]
[1766085822328,0.58,2826.1,2825.5,0.002]
[1766085822495,0.58,2826.1,2825.3,0.002]
[1766085822496,2.5528,2825.8,2825.3,0.002]
[1766085822699,1.36823423,2826.3,2824.3,0.002]
[1766085822700,0.58,2825.7,2824.5,2.4497]
[1766085822901,0.58,2825.7,2824.7,2.4497]
[1766085823435,5.299,2825.6,2824.6,0.73876737]
[1766085823741,5.299,2825.6,2824.5,1.3975]
[1766085824033,5.299,2825.6,2824.6,0.46438023]
[1766085824400,7.8518,2826.2,2824.6,1.3992]
[1766085824739,7.8518,2826.0,2824.8,2.4497]
[1766085825237,0.58,2826.4,2825.5,3.5391966]
[1766085825406,0.58,2826.4,2825.6,2.4497]
[1766085825601,2.5528,2827.1,2825.8,2.4497]
[1766085825824,2.5528,2827.1,2825.5,4.38706656]
[1766085825825,0.58,2827.0,2826.1,2.4497]
[1766085826135,0.58,2826.9,2826.1,2.4497]
[1766085826339,0.58,2826.9,2825.7,4.225504]
[1766085826630,0.93971802,2826.9,2825.8,2.91868842]
[1766085827201,8.79151802,2826.9,2825.8,2.91868842]
[1766085827433,8.79151802,2826.9,2825.8,2.4497]
[1766085827741,7.8518,2826.7,2825.5,2.91408023]
[1766085827942,7.8518,2826.6,2825.5,2.91408023]
[1766085828302,0.35971802,2826.9,2825.5,0.405504]
[1766085828628,0.58,2826.8,2825.9,3.7616]
[1766085829721,0.58,2826.8,2825.9,2.4497]
[1766085830443,2.5528,2828.4,2826.6,1.2547]
[1766085830744,2.5528,2828.4,2826.3,0.86988423]
[1766085830745,5.704504,2828.2,2826.7,2.4497]
[1766085831036,7.8518,2827.6,2826.4,1.71908023]
[1766085831206,0.58,2827.5,2826.4,1.71908023]
[1766085831408,5.879,2827.5,2826.5,0.46438023]
[1766085831634,5.879,2827.5,2826.4,2.4497]
[1766085831635,5.8869,2827.4,2826.4,2.4497]
[1766085831830,5.8869,2827.4,2826.4,2.91408023]
[1766085832439,5.8869,2827.4,2826.5,0.46438023]
[1766085832645,5.8869,2827.4,2826.4,2.91408023]
[1766085832846,5.299,2827.4,2826.5,2.91408023]
[1766085833144,0.58,2827.3,2826.5,2.91408023]
[1766085834013,5.299,2827.4,2826.5,6.45200306]
[1766085834238,0.58,2827.3,2826.5,6.45200306]
[1766085834422,0.58,2827.3,2826.5,2.91408023]
[1766085834746,0.58,2827.3,2826.5,7.21729777]
[1766085835040,0.46438023,2827.9,2826.6,2.4497]
[1766085835251,0.58,2827.8,2826.8,2.4497]
[1766085836507,0.46438023,2827.9,2826.8,2.4497]
[1766085836508,0.58,2827.7,2826.8,2.4497]
[1766085838731,7.8518,2827.9,2826.8,2.4497]
[1766085838917,1.41161802,2827.8,2826.8,2.4497]
[1766085839316,0.58,2827.7,2826.8,2.4497]
[1766085839846,7.8518,2827.4,2826.4,0.002]
[1766085840148,7.8518,2827.2,2826.4,0.002]
[1766085840349,3.1328,2827.1,2826.4,0.002]
[1766085840561,7.8518,2826.9,2826.4,0.002]
[1766085840763,0.89328,2827.0,2825.8,2.4497]
[1766085840764,7.8518,2826.8,2825.8,2.4497]
[1766085840944,5.299,2826.5,2825.6,4.46858517]
[1766085841113,5.5132,2826.4,2826.0,0.002]
[1766085841317,0.31328,2827.0,2826.0,0.002]
[1766085841318,4.9332,2826.8,2826.0,0.002]
[1766085841558,0.58,2826.9,2826.3,2.4603]
[1766085841728,0.58,2827.0,2826.3,2.80033]
[1766085842048,0.58,2827.0,2826.0,0.002]
[1766085842049,2.4763,2826.9,2826.0,0.002]
[1766085842252,4.9332,2826.7,2826.0,0.002]
[1766085842480,0.58,2826.6,2826.0,0.002]
[1766085842750,2.4773,2827.7,2826.4,2.4603]
[1766085842918,0.58,2827.6,2826.1,0.46438023]
[1766085843117,0.41175603,2827.5,2826.2,0.46438023]
[1766085843352,7.4095,2827.4,2826.0,2.4623]
[1766085843532,0.41175603,2827.5,2826.0,2.4623]
[1766085843719,2.4763,2827.3,2826.0,2.4623]
[1766085843916,0.58,2827.2,2826.0,2.4623]
[1766085844117,0.001,2827.7,2826.4,2.92468023]
[1766085844316,0.581,2827.7,2826.7,2.4603]
[1766085844552,2.4763,2827.6,2826.5,0.46438023]
[1766085844736,7.4095,2827.6,2826.5,0.46438023]
[1766085845255,2.4763,2827.6,2826.5,0.46438023]
[1766085845459,4.9332,2827.4,2826.5,0.46438023]
[1766085845623,4.9332,2827.0,2826.0,2.4623]
[1766085845815,0.65937661,2827.5,2826.2,2.4603]
[1766085845816,4.9332,2827.4,2826.2,2.4603]
[1766085846021,0.58,2827.3,2826.3,0.46438023]
[1766085846365,7.4095,2827.4,2826.3,2.92468023]
[1766085846657,7.4095,2827.4,2826.1,3.80492433]
[1766085846658,5.5132,2827.2,2826.1,3.19118023]
[1766085846869,5.5132,2827.2,2826.3,2.92468023]
[1766085846870,0.58,2827.2,2826.3,2.92468023]
[1766085848065,4.9332,2827.1,2826.0,6.46524925]
[1766085848234,4.9332,2827.1,2826.1,2.4603]
[1766085848441,7.4095,2826.8,2826.0,0.002]
[1766085848663,1.32095,2826.7,2826.0,0.46638023]
[1766085848860,0.58,2826.7,2826.0,0.46638023]
[1766085849140,0.58,2826.7,2826.0,0.002]
[1766085849545,4.9332,2826.6,2826.0,0.002]
[1766085849865,4.9332,2826.4,2826.0,0.002]
[1766085850374,0.58,2826.7,2826.0,0.002]
[1766085850542,0.80788766,2827.4,2826.1,0.1557]
[1766085850740,0.80788766,2827.4,2826.4,2.4603]
[1766085850741,0.58,2827.3,2826.4,2.4603]
[1766085850936,5.5132,2827.3,2826.4,2.4603]
[1766085852443,7.2305,2827.2,2826.2,0.58]
[1766085852643,0.86988423,2827.2,2826.0,0.002]
[1766085852869,0.001,2827.4,2826.4,9.58552733]
[1766085853097,0.001,2827.4,2826.6,2.6015]
[1766085853448,0.001,2827.4,2826.6,2.5094]
[1766085853680,0.001,2827.7,2826.8,2.5094]
[1766085853848,0.001,2827.7,2827.0,2.5094]
[1766085854881,0.001,2827.7,2827.0,6.04669882]
[1766085855072,0.001,2827.7,2827.0,2.5094]
[1766085855272,0.001,2827.7,2827.0,3.17921978]
[1766085855584,0.001,2827.7,2827.0,2.5094]
[1766085856283,0.58,2828.1,2827.1,2.5201]
[1766085857162,4.7542,2827.6,2826.5,1.43214296]
[1766085857362,4.7542,2827.5,2826.2,0.58]
[1766085857590,4.7542,2827.5,2826.6,0.46438023]
[1766085857783,3.1211,2827.6,2826.7,2.97378023]
[1766085857784,0.58,2827.6,2826.7,2.97378023]
[1766085858377,0.58,2827.6,2826.7,6.51145731]
[1766085858684,0.001,2827.7,2826.8,2.5094]
[1766085858885,0.58,2828.1,2827.0,2.5094]
[1766085859066,0.58,2828.1,2827.0,3.0894]
[1766085859250,0.58,2828.1,2827.0,0.58]
[1766085859450,0.58,2828.1,2827.2,0.46438023]
[1766085859654,4.7542,2828.0,2827.2,0.46438023]
[1766085862192,7.2953,2827.7,2827.0,0.58]
[1766085862364,4.7542,2827.6,2827.0,0.58]
[1766085862565,4.7542,2827.6,2826.8,0.46438023]
[1766085862884,7.8753,2827.6,2826.8,0.46438023]
[1766085863086,8.66283,2827.6,2826.8,0.46438023]
[1766085863473,6.12173,2827.6,2826.8,0.46438023]
[1766085866358,0.58,2827.6,2826.8,2.97378023]
[1766085866781,7.8753,2827.9,2826.8,2.97378023]
[1766085867087,4.7542,2827.8,2826.8,2.97378023]
[1766085868379,2.5411,2827.8,2826.8,2.97378023]
[1766085868596,4.7542,2827.7,2826.8,2.97378023]
[1766085868796,8.08283,2827.7,2826.8,2.97378023]
[1766085868968,4.7542,2827.6,2826.8,2.97378023]
[1766085869475,4.7542,2827.6,2826.8,6.51133595]
[1766085869809,4.7542,2827.6,2826.8,2.97378023]
[1766085870298,5.3352,2828.0,2826.9,2.5094]
[1766085870603,5.3352,2828.0,2827.1,2.5094]
[1766085870797,0.001,2828.0,2827.2,2.97378023]
[1766085872604,4.7542,2828.3,2827.4,2.5094]
[1766085872803,3.1211,2828.4,2827.4,2.5094]
[1766085873139,3.90873,2828.4,2827.4,2.5094]
[1766085873275,0.001,2828.6,2827.6,2.5094]
[1766085873469,0.001,2828.6,2827.8,2.5094]
[1766085874270,0.001,2828.8,2828.0,2.5094]
[1766085874715,0.001,2828.8,2828.1,2.5094]
[1766085874893,0.001,2828.8,2828.2,3.11394405]
[1766085875207,0.001,2828.8,2827.9,0.58]
[1766085875518,4.7542,2828.3,2827.2,2.5094]
[1766085875672,0.58,2828.7,2826.8,6.04893653]
[1766085875673,4.7542,2827.9,2826.8,6.04893653]
[1766085876014,7.2953,2827.9,2827.0,0.46438023]
[1766085876809,4.7542,2827.9,2827.0,6.51108309]
[1766085877014,4.7542,2827.9,2827.2,0.46438023]
[1766085877329,7.2953,2828.7,2827.4,2.97378023]
[1766085877533,7.2953,2828.6,2827.4,2.97378023]
[1766085878187,7.2953,2828.6,2827.5,2.97378023]
[1766085878629,0.58,2828.7,2827.3,0.58]
[1766085878630,4.7542,2828.4,2827.3,0.58]
[1766085878920,0.58,2828.7,2827.3,1.04438023]
[1766085878921,2.5411,2828.1,2827.3,1.04438023]
[1766085880647,7.2953,2828.6,2827.4,2.97378023]
[1766085880821,2.5411,2828.6,2827.5,2.97378023]
[1766085880990,0.58,2828.7,2827.5,2.97378023]
[1766085880991,0.001,2828.0,2827.5,2.97378023]
[1766085881186,0.46438023,2828.7,2827.5,2.97378023]
[1766085881494,4.7542,2828.7,2827.7,2.5094]
[1766085881701,4.7542,2828.7,2827.8,0.58]
[1766085882826,7.258,2828.7,2827.8,0.58]
[1766085882986,4.3782,2828.6,2827.8,0.58]
[1766085883998,2.5038,2828.7,2827.8,3.1695]
[1766085884324,2.5038,2828.7,2827.8,7.47688446]
[1766085884542,2.5038,2828.5,2827.0,0.002]
[1766085884741,6.882,2828.0,2827.0,3.53930906]
[1766085884916,7.461,2828.0,2827.0,3.53930906]
[1766085885108,7.461,2828.0,2827.0,7.07662777]
[1766085885307,4.3782,2828.2,2827.3,0.46438023]
[1766085885533,6.882,2828.0,2827.3,0.46438023]
[1766085885814,4.3782,2827.9,2827.3,0.46438023]
[1766085886513,4.3782,2827.8,2827.0,0.46638023]
[1766085886715,6.882,2827.8,2827.0,0.46638023]
[1766085887239,0.579,2827.9,2827.0,6.59316821]
[1766085887438,0.579,2827.9,2827.0,4.12703522]
[1766085887945,0.579,2827.9,2827.0,7.66433845]
[1766085888312,0.579,2827.9,2827.0,4.12703522]
[1766085889514,4.3782,2827.8,2827.0,4.12703522]
[1766085889748,2.5038,2827.8,2827.0,0.002]
[1766085889911,4.3782,2827.7,2827.0,0.002]
[1766085890242,2.5038,2827.6,2827.0,0.002]
[1766085890543,4.3782,2827.5,2827.0,0.002]
[1766085891924,0.579,2827.5,2826.0,6.13001565]
[1766085892127,0.579,2827.5,2826.1,0.579]
[1766085892325,6.882,2827.1,2826.1,1.04338023]
[1766085892527,4.3782,2827.0,2826.1,1.04338023]
[1766085893320,4.3782,2827.0,2826.1,4.58182462]
[1766085893526,4.3782,2827.0,2826.1,1.04338023]
[1766085893722,1.2672,2827.0,2826.0,0.002]
[1766085893926,4.3782,2826.8,2825.9,0.002]
[1766085894149,7.6536963,2827.0,2825.4,2.5895]
[1766085894150,4.3782,2826.4,2825.4,2.5895]
[1766085894324,4.3782,2826.2,2825.4,2.5895]
[1766085894657,4.3782,2825.9,2825.2,0.002]
[1766085894864,6.882,2825.9,2825.2,0.002]
[1766085895867,7.461,2825.9,2825.2,0.002]
[1766085896356,8.2071,2825.9,2825.2,0.002]
[1766085898326,7.461,2825.9,2825.2,0.002]
[1766085899259,4.3782,2825.7,2825.2,0.002]
[1766085900321,2.5038,2825.8,2825.2,0.002]
[1766085901531,0.579,2825.9,2825.2,0.002]
[1766085901928,4.5347,2826.5,2825.3,2.4632]
[1766085902165,4.5347,2826.2,2825.4,0.579]
[1766085902362,2.5459,2826.1,2825.4,0.579]
[1766085902655,2.5459,2826.1,2825.2,0.41428168]
[1766085902656,4.5347,2826.0,2825.2,0.41428168]
[1766085902824,4.5347,2825.6,2825.2,0.002]
[1766085903028,5.1137,2825.9,2825.2,0.002]
[1766085904733,2.5459,2826.5,2825.3,2.4632]
[1766085905067,8.12398023,2826.5,2825.5,2.4632]
[1766085905224,4.5347,2826.3,2825.5,2.75595802]
[1766085905429,4.5347,2826.2,2825.3,0.46438023]
[1766085905650,0.579,2826.5,2825.3,0.46438023]
[1766085905651,7.0806,2826.1,2825.3,0.46438023]
[1766085905868,7.0806,2826.4,2825.4,6.00251192]
[1766085906040,2.5459,2826.9,2825.5,3.53911368]
[1766085906363,7.54498023,2826.7,2825.6,2.4632]
[1766085906567,7.54498023,2826.7,2825.7,2.4632]
[1766085906727,0.579,2826.6,2825.7,2.4632]
[1766085907534,2.5459,2827.0,2825.9,2.4632]
[1766085907766,7.6596,2827.0,2825.9,2.4632]
[1766085907931,4.5347,2826.9,2826.0,3.0422]
[1766085908136,4.5347,2826.8,2826.1,0.30422]
[1766085908766,7.0806,2826.8,2826.1,0.30422]
[1766085910338,7.6596,2826.8,2826.1,0.30422]
[1766085911341,5.1137,2826.8,2826.1,0.30422]
[1766085911544,0.579,2826.8,2826.1,2.76742]
[1766085911739,0.579,2826.8,2826.2,0.68849866]
[1766085911945,0.579,2826.8,2826.1,2.76742]
[1766085912274,0.579,2826.9,2826.1,2.76742]
[1766085912977,0.46438023,2827.0,2826.1,2.76742]
[1766085913288,4.72938023,2827.0,2826.1,2.76742]
[1766085913580,4.265,2826.8,2826.1,2.76742]
[1766085913738,2.5312,2826.8,2826.0,0.579]
[1766085913938,6.7962,2826.8,2826.0,0.579]
[1766085914140,2.5322,2827.5,2826.2,2.5362]
[1766085914344,0.001,2827.5,2826.2,2.5362]
[1766085914645,0.001,2827.5,2826.1,7.07685558]
[1766085914646,4.73038023,2827.5,2826.4,2.5362]
[1766085914956,4.73038023,2827.5,2826.6,2.5362]
[1766085914957,4.266,2827.5,2826.6,2.5362]
[1766085915153,4.266,2827.5,2826.7,0.46438023]
[1766085915377,0.001,2827.5,2826.8,0.03475952]
[1766085915702,0.001,2827.5,2826.9,2.5362]
[1766085917255,0.001,2827.5,2826.9,3.14358529]
[1766085918478,0.001,2827.5,2826.9,0.60738529]
[1766085918651,6.7962,2827.4,2826.6,0.46438023]
[1766085918855,6.7962,2827.4,2826.6,6.53838239]
[1766085919068,6.7962,2827.4,2826.6,3.00058023]
[1766085919275,6.7962,2827.4,2826.7,2.5362]
[1766085919484,0.001,2827.5,2826.8,2.5362]
[1766085919779,0.001,2827.5,2826.9,2.5362]
[1766085920459,0.001,2827.5,2826.9,3.53742769]
[1766085920781,0.001,2828.0,2827.1,2.5362]
[1766085921778,0.001,2828.0,2827.3,2.5362]
[1766085922002,0.001,2828.0,2827.5,2.5362]
[1766085922208,0.001,2828.0,2827.2,2.5362]
[1766085922498,0.001,2828.0,2826.8,0.46438023]
[1766085922701,0.001,2828.0,2826.8,1.04338023]
[1766085922875,2.5312,2827.6,2826.8,1.04338023]
[1766085923082,6.7962,2827.6,2826.8,7.8288811]
[1766085923281,0.579,2827.8,2827.0,3.00058023]
[1766085923488,4.265,2827.5,2826.8,0.579]
[1766085923687,6.7962,2827.4,2826.8,0.579]
[1766085924798,6.7962,2827.7,2826.9,0.46438023]
[1766085925007,7.53372,2827.7,2826.9,3.00058023]
[1766085925304,2.5312,2827.7,2826.9,3.00058023]
[1766085925806,2.5312,2827.7,2826.9,6.53801469]
[1766085925967,0.001,2828.0,2827.2,2.5362]
[1766085926169,0.001,2828.0,2826.9,7.0748783]
[1766085926170,0.001,2828.0,2827.4,2.5362]
[1766085926405,0.001,2828.7,2827.5,0.46438023]
[1766085926574,0.68092,2828.7,2827.7,2.5362]
[1766085926774,0.68092,2828.7,2827.7,3.1152]
[1766085927099,4.94592,2828.7,2827.7,3.1152]
[1766085927289,4.265,2828.6,2827.7,3.1152]
[1766085927966,4.265,2828.6,2827.8,2.5362]
[1766085928169,4.265,2828.6,2827.8,3.23137912]
[1766085928372,4.265,2828.6,2827.8,2.5362]
[1766085928783,3.21212,2828.7,2827.8,2.5362]
[1766085928979,0.001,2828.7,2827.8,2.5362]
[1766085930020,0.001,2828.8,2828.1,2.5362]
[1766085930171,0.001,2828.9,2828.2,2.5362]
[1766085930367,0.001,2829.2,2828.2,2.5362]
[1766085930621,0.001,2829.5,2828.6,0.405504]
[1766085930780,0.001,2829.5,2828.8,0.46438023]
[1766085930990,0.001,2829.8,2828.8,3.00058023]
[1766085931321,0.001,2829.9,2828.9,0.405504]
[1766085931481,2.5312,2830.4,2829.1,0.46438023]
[1766085931671,2.5312,2830.4,2828.9,0.405504]
[1766085931672,2.5312,2830.4,2829.4,0.46438023]
[1766085932079,2.5312,2830.4,2829.5,3.00058023]
[1766085932384,6.7962,2830.4,2829.5,2.5362]
[1766085932589,4.265,2830.4,2829.5,2.5362]
[1766085933014,4.265,2830.3,2829.5,2.5362]
[1766085933314,6.7962,2830.0,2829.2,0.46438023]
[1766085933615,4.265,2830.7,2829.5,2.5362]
[1766085933828,4.265,2830.3,2828.9,2.5362]
[1766085934107,4.265,2830.1,2829.2,3.00058023]
[1766085934309,6.7962,2830.1,2829.2,3.00058023]
[1766085934607,4.265,2829.9,2829.1,0.578]
[1766085934787,2.5312,2829.8,2829.0,0.46438023]
[1766085935117,4.265,2829.7,2829.0,0.46438023]
[1766085935320,4.266,2830.1,2829.1,2.5362]
[1766085935688,4.266,2830.1,2829.1,3.53464427]
[1766085936007,4.266,2830.1,2829.2,2.5362]
[1766085936211,4.265,2829.9,2829.0,1.17573862]
[1766085936613,4.265,2830.6,2829.2,7.53349881]
[1766085936820,0.07912361,2831.3,2829.2,7.53349881]
[1766085936821,0.07912361,2831.3,2829.7,2.5362]
[1766085936975,0.578,2830.8,2829.7,3.1142]
[1766085937375,3.1092,2831.0,2829.7,3.1142]
[1766085937580,4.265,2830.6,2829.7,2.5362]
[1766085937781,4.265,2830.4,2829.6,0.578]
[1766085938115,4.265,2830.1,2829.0,0.71135839]
[1766085938415,4.265,2830.0,2829.3,0.46438023]
[1766085939901,0.578,2830.2,2829.4,2.5362]
[1766085940081,0.578,2830.2,2829.5,2.5362]
[1766085940413,0.578,2830.2,2829.3,0.46438023]
[1766085940582,4.843,2830.2,2829.4,2.5362]
[1766085940781,4.265,2830.0,2829.1,1.04238023]
[1766085940981,4.265,2829.9,2829.1,0.46438023]
[1766085941177,4.265,2829.5,2828.4,2.5362]
[1766085941410,6.7962,2829.5,2828.6,2.5362]
[1766085941612,4.265,2829.5,2828.7,2.5362]
[1766085941812,0.578,2829.7,2828.9,2.5362]
[1766085942313,6.7962,2830.0,2828.5,2.820972]
[1766085942314,6.7962,2829.6,2828.5,2.820972]
[1766085942515,6.7962,2829.6,2828.7,0.46438023]
[1766085942819,4.033,2829.8,2828.7,2.93588023]
[1766085942982,4.033,2829.5,2828.7,0.46438023]
[1766085943179,4.033,2829.8,2828.7,2.93588023]
[1766085943378,4.033,2829.7,2828.7,2.93588023]
[1766085943601,4.033,2829.5,2828.7,0.46438023]
[1766085943808,2.4812,2829.4,2828.6,0.578]
[1766085944031,0.578,2829.5,2828.7,2.4715]
[1766085944520,0.578,2829.5,2828.2,3.53572566]
[1766085944521,6.5142,2829.3,2828.4,2.4715]
[1766085944685,0.70922,2829.3,2827.9,2.93588023]
[1766085944881,6.5142,2829.1,2828.0,1.04238023]
[1766085945083,4.033,2829.9,2828.4,2.4715]
[1766085945383,6.5142,2829.6,2828.5,2.4715]
[1766085945613,6.5142,2829.6,2828.5,6.00693239]
[1766085945921,0.578,2829.8,2828.4,0.578]
[1766085945922,4.033,2829.3,2828.4,0.578]
[1766085946089,6.5142,2829.3,2828.3,1.04238023]
[1766085946285,4.033,2829.3,2827.8,6.00776804]
[1766085946515,4.033,2828.9,2827.9,0.578]
[1766085946819,4.033,2828.8,2827.9,1.04238023]
[1766085946988,0.578,2828.9,2828.1,0.46438023]
[1766085947186,6.5142,2828.7,2827.9,0.578]
[1766085947483,4.033,2828.6,2827.9,0.578]
[1766085947683,4.033,2828.6,2827.9,1.04238023]
[1766085948414,0.578,2828.9,2828.0,2.93588023]
[1766085949014,0.578,2828.9,2828.4,0.002]
[1766085949227,3.53435839,2829.4,2828.4,0.002]
[1766085949428,4.033,2829.4,2828.5,3.0495]
[1766085949586,4.033,2829.3,2828.5,3.0495]
[1766085949785,4.033,2829.3,2828.5,3.35465]
[1766085950006,0.578,2829.5,2828.6,2.4715]
[1766085950212,3.53361552,2830.0,2828.9,8.88922474]
[1766085950213,6.5142,2830.0,2828.9,8.88922474]
[1766085950395,6.5142,2830.0,2829.2,0.46438023]
[1766085950396,4.033,2830.0,2829.2,0.46438023]
[1766085950590,2.4812,2830.3,2829.2,0.88674904]
[1766085950783,2.4812,2830.3,2829.3,2.4715]
[1766085951086,0.579,2830.8,2829.5,2.93588023]
[1766085951290,4.033,2830.4,2829.5,2.93588023]
[1766085952438,4.033,2830.2,2829.5,0.46438023]
[1766085952643,4.033,2830.7,2829.6,2.4715]
[1766085952840,4.033,2830.6,2829.6,2.4715]
[1766085953021,6.5142,2830.6,2829.6,2.4715]
[1766085953339,2.4812,2830.5,2829.6,2.4715]
[1766085953543,4.033,2830.4,2829.5,0.81005868]
[1766085955010,4.033,2830.4,2829.5,3.28155868]
[1766085955206,0.579,2830.8,2829.5,0.46438023]
[1766085955207,4.033,2830.2,2829.5,0.46438023]
[1766085955408,4.033,2830.1,2829.5,0.46438023]
[1766085956121,4.033,2830.0,2829.5,0.46438023]
[1766085956441,4.033,2830.1,2829.5,0.46438023]
[1766085957638,4.033,2830.1,2829.5,0.46638023]
[1766085957845,6.5142,2830.3,2829.5,0.46638023]
[1766085958426,7.22342,2830.3,2829.5,0.46638023]
[1766085958748,0.70922,2830.3,2829.5,0.002]
[1766085958933,0.70922,2830.3,2828.8,2.4715]
[1766085958934,2.4812,2830.2,2828.8,0.46438023]